{"text_format":"1","workbook":"xlsx","n_sheets":5,"sheets":["Tableau 1","Tableau 2","Tableau3","données_graph1","données graph2"],"not_rendered":{"charts":0,"images":0,"macros":0,"external_links":0,"defined_names":10,"comments":0,"pivot_tables":0},"unopened":[],"bounds":{"document_bytes":16777216,"sheet_cells":100000,"rows_first":2000,"rows_last":500,"rows_between":2000,"halvings":0,"cell_chars":16384,"cell_head_chars":4096},"cells_cut":0,"cells_raw":0,"read":"whole","date_system":"1900"}

{"sheet":"Tableau 1","index":0,"n_rows":23,"n_cols":10,"rows_kept":23,"cut":false,"hidden":false,"merged":[[1,0,1,16383],[20,0,20,8],[21,0,21,8],[3,1,3,4],[4,1,4,2],[4,5,4,6],[19,0,19,8],[3,5,3,9],[4,9,5,9]]}
["Tableau 1"]
["Salariés concernés par la revalorisation du Smic au 1er janvier 2015 et au 1er janvier 2016, selon la taille de l’entreprise"]
[]
[null,"Au 1er janvier 2015",null,null,null,"Au 1er janvier 2016"]
[null,"Ensemble",null,"Temps complet","Temps partiel","Ensemble",null,"Temps complet","Temps partiel","Part des femmes parmi les bénéficiaires"]
[null,"Effectifs","En % des effectifs totaux","En % des effectifs à temps complet","En % des effectifs à temps partiel","Effectifs","En % des effectifs totaux","En % des effectifs à temps complet","En % des effectifs à temps partiel"]
["1 à 9 salariés",700000,24.3,19.399999999999999,35.799999999999997,710000,24.2,19.2,36,53.6]
["1 salarié",120000,32.4,27.1,40.299999999999997,120000,32.9,26.3,42.4,57.7]
["2 salariés",120000,29.3,23.4,39.9,120000,29.4,23.3,40.1,56.2]
["3-5 salariés",270000,24.7,19.8,36.1,270000,24.2,19.399999999999999,35.5,52.5]
["6-9 salariés",190000,18.899999999999999,15.5,30.1,200000,19,15.5,30.3,49.7]
["10 salariés ou plus",990000,8,5.5,21.1,890000,7.2,4.9000000000000004,19.100000000000001,59]
["10 à 19 salariés",180000,12.4,9.4,25.8,150000,10.6,8.1,23.1,52.4]
["20 à 49 salariés",240000,12.4,8.1,32.299999999999997,210000,10.6,6.9,28,55.9]
["50 à 99 salariés",150000,12.4,8.5,29.8,140000,11,7,29.3,60.9]
["100 à 249 salariés",130000,8,5.8,19.899999999999999,120000,7.6,5.5,19.600000000000001,61.1]
["250 à 499 salariés",80000,7.1,5.4,18.8,70000,5.9,4.4000000000000004,15.8,60.7]
["500 salariés ou plus",210000,4.2,2.6,12.8,200000,4.0999999999999996,2.7,11.6,63.7]
["Total",1690000,11.1,7.8,25.6,1600000,10.5,7.3,24.3,56.6]
["Note : les tailles d'entreprise sont définies en fonction de leur nombre de salariés comptabilisés en personnes physiques, quel que soit leur temps de travail."]
["Lecture : dans les entreprises de 1 à 9 salariés, 710 000 personnes ont été concernées par la revalorisation du Smic au 1er janvier 2016, soit 24,2 % des effectifs de ces entreprises ; dans les entreprises de 1 à 9 salariés, 19,2 % des salariés à temps complet ont été concernés par la revalorisation du Smic au 1er janvier 2016."]
["Champ : ensemble des salariés sauf apprentis, stagiaires, intérimaires ; ensemble des secteurs sauf agriculture, administration, syndicats de copropriété, associations de loi 1901 de l'action sociale, activités des ménages, activités extraterritoriales ; France métropolitaine."]
["Source : Dares, enquêtes Acemo."]

{"sheet":"Tableau 2","index":1,"n_rows":64,"n_cols":8,"rows_kept":64,"cut":false,"hidden":false,"merged":[[1,0,1,7],[59,0,59,7],[4,6,4,7],[3,4,3,7],[3,0,5,0],[3,1,5,1],[3,2,5,2],[4,4,4,5],[2,1,2,5],[63,0,63,7],[61,0,61,7],[60,0,60,7],[3,3,5,3],[57,0,57,7],[58,0,58,7],[56,0,56,7],[62,0,62,7]]}
["Tableau 2"]
["Salariés ayant bénéficié de la revalorisation du Smic au 1er janvier 2015 et au 1er janvier 2016, \npar branches professionnelles regroupées et par principales conventions collectives de branche"]
[null,null,null,null,null,null,null,"En %"]
["Niveau agrégé Cris1","Conventions regroupées pour l'information statistique (Cris) et principales conventions collectives (IDCC)","Effectifs salariés au 31 décembre 2014 *","Proportion couverte par les enquêtes Acemo**","Proportion de salariés ayant bénéficié de la revalorisation du Smic au 1er janvier 2015 et au 1er janvier 2016 "]
[null,null,null,null,"Ensemble des salariés",null,"Salariés à temps partiel"]
[null,null,null,null,"1er janvier 2015","1er janvier 2016","1er janvier 2015","1er janvier 2016"]
["A ","MÉTALLURGIE ET SIDÉRURGIE",1642200,99.332693724918016,3,3,7,6]
["dont ","0054 - Métallurgie Région Parisienne",250100,98.402230383375141,2,2,4,5]
["dont ","0650 - Métallurgie cadres",435300,99.592738843187789,"ε","ε","ε","ε"]
["B ","BÂTIMENT ET TRAVAUX PUBLICS ***",1382700,97.551016188011147,8,8,19,21]
["dont ","1596 - Bâtiment ouvriers jusqu'à 10 Salariés",336200,99.195706741878112,16,17,25,27]
["dont ","1597 - Bâtiment ouvriers plus de 10 Salariés",489100,99.396484050191063,4,4,8,13]
["dont ","1702 - Travaux publics ouvriers",174200,98.910952823807918,2,3,11,12]
["C ","CHIMIE ET PHARMACIE",509500,97.891300563506448,5,4,13,11]
["dont ","0044 - Industries chimiques",218400,98.763440375654554,2,2,3,3]
["dont ","0176 - Industrie pharmaceutique",127500,99.382970932633199,"ε","ε","ε","ε"]
["dont ","1996 - Pharmacie d'officine",118700,95.064608910345058,14,11,19,17]
["D ","PLASTIQUES, CAOUTCHOUC ET COMBUSTIBLES",220500,98.453004891684131,4,4,7,8]
["dont ","0292 - Plasturgie",119300,99.42769345830861,7,6,9,9]
["E ","VERRE ET MATÉRIAUX DE CONSTRUCTION",199200,99.107047943021158,4,5,12,15]
["F ","BOIS ET DÉRIVÉS",254900,97.629836555309794,10,8,21,16]
["G ","HABILLEMENT, CUIR, TEXTILE",470800,98.035128991613774,24,21,40,36]
["dont ","0675 - Succursales de vente au détail d'habillement",115000,98.203355995404806,26,22,37,30]
["H ","CULTURE ET COMMUNICATION",543100,97.318699075127583,10,10,30,32]
["I ","AGRO-ALIMENTAIRE",822900,96.826702226492884,17,13,35,28]
["dont ","0843 - Boulangeries pâtisseries artisanales",132000,98.722878759457259,36,20,54,27]
["J ","COMMERCE DE GROS ET IMPORT-EXPORT",376100,98.35094921300194,7,6,20,20]
["dont ","0573 - Commerces de gros",333700,98.305723692810957,8,7,21,20]
["K ","COMMERCE PRINCIPALEMENT ALIMENTAIRE",678300,97.871396430493249,21,13,32,19]
["dont ","2216 - Commerce détail et gros à prédominance alimentaire",677300,97.861010911918129,21,13,32,19]
["L ","COMMERCE DE DÉTAIL PRINCIPALEMENT NON ALIMENTAIRE",383000,95.572921385251348,15,13,30,28]
["dont ","1517 - Commerces de détail non alimentaire",103900,97.649712721243205,28,22,42,39]
["M ","SERVICES DE L'AUTOMOBILE ET DES MATÉRIELS ROULANTS",502300,97.606836936092066,9,7,24,22]
["dont ","1090 - Services de l'automobile",417700,98.481823690502466,10,8,24,23]
["N ","HÔTELLERIE, RESTAURATION ET TOURISME",970900,97.089437142390921,34,37,57,61]
["dont ","1501 - Restauration rapide",161800,97.104896689121205,65,63,78,75]
["dont ","1979 - Hôtels Cafés Restaurants",606800,97.524835036732441,31,34,50,57]
["O ","TRANSPORTS (HORS STATUTS)",875400,98.221754333023569,12,10,12,10]
["dont ","0016 - Transports routiers",664600,98.732619288923601,15,12,16,14]
["P ","SECTEUR SANITAIRE ET SOCIAL",1989000,47.271575519654043,17,15,25,20]
["dont ","2264 - Hospitalisation privée",268900,91.148986395382011,16,16,19,19]
["Q ","BANQUES, ÉTABLISSEMENTS FINANCIERS ET ASSURANCES",737700,96.232440972929652,2,2,4,3]
["dont ","1672 - Sociétés d'assurances",138900,97.456225158448817,"ε","ε","ε","ε"]
["dont ","2120 - Banques",218400,98.262218295322569,"ε","ε","ε","ε"]
["R ","IMMOBILIER ET ACTIVITÉS TERTIAIRES LIÉES AU BÂTIMENT",321500,79.844951806055889,10,10,19,20]
["dont ","1527 - Immobilier",141200,97.018696663000654,14,15,26,29]
["S ","BUREAUX D'ÉTUDES ET PRESTATIONS DE SERVICES AUX ENTREPRISES",945100,98.251608638610236,8,8,21,25]
["dont ","1486 - Bureaux d'études techniques SYNTEC",820200,98.430829224248981,4,3,12,12]
["dont ","2098 - Prestataires de services secteur tertiaire",122800,97.498181939765786,37,40,41,53]
["T ","PROFESSIONS JURIDIQUES ET COMPTABLES",250900,96.610857724110772,5,4,10,9]
["dont ","0787 - Cabinets d'experts comptables",135400,97.170081998157684,4,3,8,5]
["U ","NETTOYAGE, MANUTENTION, RÉCUPÉRATION ET SÉCURITÉ",648900,97.175857476741299,8,5,9,5]
["dont ","1351 - Prévention et sécurité",154700,96.20791462390639,12,11,23,18]
["dont ","3043 - Entreprises de propreté et services associés",363300,98.031856009076535,7,4,8,4]
["V ","BRANCHES NON AGRICOLES DIVERSES",610300,97.125884036200873,16,18,23,27]
[]
["* Ces effectifs sont issus d'une exploitation exhaustive des DADS 2014 . Ils sont relatifs à l'ensemble des salariés du champ DADS, c'est-à-dire à l'ensemble des activités économiques, hors activités extraterritoriales. Pour les regroupements CRIS allant de W à Y (statuts, conventions d'entreprise, intérimaires, conventions agricoles, fonction publique, etc.), le taux de couverture par les enquêtes Acemo (encadré 3) est faible (20 %). Aussi, les données relatives à ces regroupements ne figurent pas ici."]
["** Proportion couverte par les enquêtes Acemo (voir encadré 3), c'est-à-dire hors départements d'outre-mer, stagiaires, intérimaires, agriculture, administration, associations de loi 1901 de l'action sociale, activités des ménages et activités extraterritoriales."]
["*** Ne figure pas ici la convention collective \"Bâtiment ETAM\" (IDCC 2609), dont l'effectif salarié est de 145 600 en 2014. En effet, cette convention collective n'est pratiquement jamais appliquée de façon \"principale\" dans les établissements de la CRIS \"Bâtiment et travaux publics\" (où 74 % des salariés sont ouvriers), ce qui y rend impossible une estimation de la proportion de salariés au Smic par les enquêtes Acemo."]
["ε : proportion inférieure à 1 %."]
["Notes :\n- pour l'estimation des effectifs salariés, la convention collective est propre au salarié (en principe, la convention collective est déterminée en fonction de l'activité principale de l'établissement, mais, à titre dérogatoire, certains secteurs ont développé des conventions catégorielles, ce qui conduit à une coexistence de plusieurs conventions collectives dans la même entreprise) ; dans les enquêtes Acemo, la convention collective est celle principalement appliquée par l'établissement (en termes de nombre de salariés) ;\n- ne figurent ici que les conventions collectives de branche dont l'effectif salarié au 31 décembre 2014 est supérieur à 100 000 et dont les données statistiques sont diffusables (encadré 2)."]
["Lecture : parmi les 1 642 200 salariés du regroupement Cris \"Métallurgie et Sidérurgie\", 3 % ont été concernés par la revalorisation du Smic au 1er janvier 2016."]
["Champ : \n- colonnes 1 et 2 : ensemble des salariés ; ensemble des secteurs sauf organismes de l'État, activités des ménages, activités extraterritoriales ; France entière ;\n- colonnes suivantes : ensemble des salariés sauf apprentis, stagiaires, intérimaires ; ensemble des secteurs sauf agriculture, administration, syndicats de copropriété, associations de loi 1901 de l'action sociale, activités des ménages, activités extraterritoriales ; France métropolitaine."]
["Sources :  Insee, DADS (colonnes 1 et 2) ; Dares, enquêtes Acemo (colonnes suivantes)."]

{"sheet":"Tableau3","index":2,"n_rows":32,"n_cols":6,"rows_kept":32,"cut":false,"hidden":false,"merged":[[30,0,30,5],[4,2,4,5],[28,0,28,5],[29,0,29,5],[27,0,27,3],[1,0,1,5],[26,0,26,3],[5,2,5,3],[5,4,5,5],[25,0,25,3]]}
["Tableau 3"]
["Salariés ayant bénéficié de la revalorisation du Smic au 1er janvier 2015 et au 1er janvier 2016, \nselon le secteur d'activité de l'entreprise"]
[]
[null,null,null,null,null,"En %"]
[null,null,"Proportion de salariés ayant bénéficié \nde la revalorisation du Smic\nau 1er janvier 2015 et au 1er janvier 2016"]
[null,null,"Ensemble des salariés",null,"Salariés à temps partiel"]
[null,null,"1er janvier 2015","1er janvier 2016","1er janvier 2015","1er janvier 2016"]
["B","Industries extractives",2.2999999999999998,3.4,"NS ***","NS ***"]
["C","Industrie manufacturière",5.8,5.2,18.899999999999999,14.7]
["D","Production et distribution d'électricité, de gaz, de vapeur et d'air conditionné",0.6,0.5,1.2,1.2]
["E","Production et distribution d'eau ; assainissement, gestion des déchets et dépollution",3.8,1.9,8.5,3.8]
["F","Construction",7.9,8.1999999999999993,19.899999999999999,22.9]
["G","Commerce ; réparation d'automobiles et de motocycles",15.2,11.4,30.8,23.6]
["H","Transports et entreposage",7,5.7,8.1,7.7]
["I","Hébergement et restauration",34.799999999999997,38.299999999999997,57.3,61.8]
["J","Information et communication",2.2999999999999998,2.5,7.2,7.2]
["K","Activités financières et d'assurance",3,2.9,7.8,7.9]
["L","Activités immobilières",10.6,11.1,23.3,24]
["M","Activités spécialisées, scientifiques et techniques",5.9,6,18.600000000000001,21.8]
["N","Activités de services administratifs et de soutien",13,12,15.1,13]
["P","Enseignement *",7.7,7.7,10,9.3000000000000007]
["Q","Santé humaine et action sociale **",22.5,20,35.9,30.1]
["R","Arts, spectacles et activités récréatives",13.1,14.2,18.100000000000001,18.8]
["S","Autres activités de services",22.1,22.3,31.4,32.700000000000003]
["Ensemble",null,11.1,10.5,25.6,24.3]
["* Hors enseignement public."]
["** Hors fonction publique hospitalière et associations de loi 1901 de l'action sociale."]
["*** Résultat non significatif. Dans ce secteur, moins d’un millier de salariés concernés sont à temps partiel."]
["Note : les données sont présentées en nomenclature NAF rév. 2 en 21 postes (NAF21) ; du fait du champ des enquêtes Acemo, quatre postes de la NAF21 ne sont pas ici représentés (agriculture, administration, activités des ménages et activités extraterritoriales). "]
["Lecture : dans le secteur des activités immobilières, 11,1 % des salariés ont bénéficié de la revalorisation du Smic au 1er janvier 2016 ; dans ce même secteur, 24,0 % des salariés à temps partiel ont été concernés."]
["Champ : ensemble des salariés sauf apprentis, stagiaires, intérimaires ; ensemble des secteurs sauf agriculture, administration, syndicats de copropriété, associations de loi 1901 de l'action sociale, activités des ménages, activités extraterritoriales ; France métropolitaine."]
["Source : Dares, enquêtes Acemo."]

{"sheet":"données_graph1","index":3,"n_rows":37,"n_cols":4,"rows_kept":37,"cut":false,"hidden":false,"merged":[]}
["Graphique 1: Proportion de salariés concernés par les relèvements du Smic* ou de la GMR** parmi les entreprises du secteur concurrentiel"]
[]
["année","Valeur du Smic(*)","année","Pourcentage de bénéficiaires"]
[1991,4.9800000000000004,{"$f":"CONCATENATE(A4,\"      \",B4,\"€\")","v":"1991      4,98€"},8.6]
[1992,5.19,"1992      5,19€",8.6]
[1993,5.31,"1993      5,31€",8.1]
[1994,5.42,"1994      5,42€",8.1999999999999993]
[1995,5.64,"1995      5,64€",11.2]
[1996,5.78,"1996      5,78€",10.7]
[1997,6.01,"1997      6,01€",14.1]
[1998,6.13,"1998      6,13€",12.6]
[1999,6.21,"1999      6,21€",12.8]
[2000,6.41,"2000      6,41€",13.6]
[2001,6.67,"2001      6,67€",13.9]
[2002,6.83,"2002      6,83€",14]
[2003,7.19,"2003      7,19€",14.1]
[2004,7.61,"2004      7,61€",15.3]
[2005,8.0299999999999994,"2005      8,03€",16.3]
[2006,8.27,"2006      8,27€",15.1]
[2007,8.44,"2007      8,44€",12.9]
[2008,8.7100000000000009,"2008      8,71€",13.9]
[2009,8.82,{"$f":"CONCATENATE(A22,\"      \",B22,\"€\")","v":"2009      8,82€"},10.6]
["1er janv. 2010",8.86,{"$f":"CONCATENATE(A23,\"        \",B23,\"€\")","v":"1er janv. 2010        8,86€"},9.8000000000000007]
["1er janv. 2011",9,{"$f":"CONCATENATE(A24,\"        \",B24,\",00€\")","v":"1er janv. 2011        9,00€"},10.6]
["1er déc. 2011",9.19,{"$f":"CONCATENATE(A25,\"        \",B25,\"€\")","v":"1er déc. 2011        9,19€"},11.1]
["1er janv. 2013",9.43,{"$f":"CONCATENATE(A26,\"        \",B26,\"€\")","v":"1er janv. 2013        9,43€"},12.3]
["1er janv. 2014",9.5299999999999994,{"$f":"CONCATENATE(A27,\"        \",B27,\"€\")","v":"1er janv. 2014        9,53€"},10.8]
["1er janv 2015",9.61,{"$f":"CONCATENATE(A28,\"        \",B28,\"€\")","v":"1er janv 2015        9,61€"},11.1]
["1er janv 2016",9.67,{"$f":"CONCATENATE(A29,\"        \",B29,\"€\")","v":"1er janv 2016        9,67€"},10.5]
[]
["* converti en € avant 2001"]
[]
["* Depuis 2010, la revalorisation du Smic s'effectue le 1er janvier, au lieu du 1er juillet.  En 2012, du fait de la revalorisation anticipée du Smic intervenue le 1er décembre 2011, l'information a été collectée sur le nombre de salariés concernés par la revalorisation à cette date, et non au 1er janvier 2012 (encadré 3)."]
["** Garantie mensuelle de rémunération. La GMR a été instaurée lors du passage aux 35 heures. Elle permettait aux salariés payés au Smic, dont l'horaire de travail avait été réduit, de bénéficier du maintien de leur rémunération antérieure. La loi du 17 janvier 2003, dite « Fillon », a programmé la disparition progressive de ce dispositif et la convergence du Smic et de la GMR au 1er juillet 2005."]
["Note : les évolutions doivent être analysées avec précaution, du fait des modifications successives apportées au dispositif de mesure. La période 2003-2005 a notamment fait l'objet d'un dispositif d'observation spécifique (encadré 3)."]
["Champ : ensemble des salariés sauf apprentis, stagiaires, intérimaires ; ensemble des secteurs sauf agriculture, administration, syndicats de copropriété, associations de loi 1901 de l'action sociale, activités des ménages, activités extraterritoriales ; France métropolitaine."]
["Source : Dares, enquêtes Acemo."]

{"sheet":"données graph2","index":4,"n_rows":33,"n_cols":4,"rows_kept":33,"cut":false,"hidden":false,"merged":[]}
["Graphique 2"]
["Proportion de femmes par branches professionnelles regroupées (Cris)"]
[null,null,null,"En %"]
[null,"Cris","Proportion de femmes parmi les bénéficiaires de la revalorisation du Smic","Proportion de femmes parmi les salariés"]
[null,"A",39,14]
[null,"B",20,11]
[null,"C",85,56]
[null,"D",52,39]
[null,"E",39,22]
[null,"F",39,30]
[null,"G",75,67]
[null,"H",48,45]
[null,"I",60,44]
[null,"J",42,35]
[null,"K",63,58]
[null,"L",58,50]
[null,"M",33,22]
[null,"N",55,48]
[null,"O",22,23]
[null,"P",82,77]
[null,"Q",75,60]
[null,"R",63,58]
[null,"S",67,38]
[null,"T",77,73]
[null,"U",32,42]
[null,"V",81,59]
[]
[null,"Note : les lettres figurant sur le graphique correspondent aux conventions regroupées pour l’information"]
[null,"statistique (Cris) du tableau 2."]
[null,"Champ : ensemble des salariés sauf apprentis, stagiaires, intérimaires ; ensemble des secteurs sauf"]
[null,"agriculture, administration, syndicats de copropriété, associations de loi 1901 de l’action sociale,"]
[null,"activités des ménages, activités extraterritoriales ; France métropolitaine."]
[null,"Sources : Insee, DADS."]